bitfinex-derivatives/quotes_SOLF0:USTF0_20250325
["timestamp","ask_amount","ask_price","bid_price","bid_amount"]
[1742882494159,269.17448479,139.76,139.62,0.04640918]
[1742882494457,8.25957332,139.72,139.61,25.4]
[1742882494653,33.65957332,139.72,139.62,1.9037]
[1742882495362,0.04608746,139.68,139.66,0.05389486]
[1742882499563,33.65957332,139.67,139.59,257.84]
[1742882500067,39.65537332,139.67,139.59,257.84]
[1742882500267,39.65537332,139.67,139.59,283.24]
[1742882500770,0.04757047,139.64,139.62,0.05436441]
[1742882501168,33.68714379,139.64,139.56,25.38]
[1742882501363,8.25957332,139.63,139.56,25.38]
[1742882502071,8.25957332,139.63,139.55,64.72434294]
[1742882502266,0.0504732,139.61,139.58,0.04899931]
[1742882507877,0.0504732,139.61,139.59,7.1629]
[1742882508177,0.0504732,139.61,139.58,0.04899931]
[1742882508372,0.0504732,139.61,139.58,25.44899931]
[1742882510076,0.0504732,139.61,139.59,7.1625]
[1742882510278,0.0504732,139.61,139.58,25.44899931]
[1742882510672,0.0504732,139.61,139.59,7.1625]
[1742882510976,0.0504732,139.61,139.58,25.44899931]
[1742882511373,0.0504732,139.61,139.6,7.1624]
[1742882530686,13.1551,139.67,139.64,7.16]
[1742882530886,5.9958,139.67,139.64,7.16]
[1742882531694,6.04578511,139.67,139.64,7.21206281]
[1742882531893,13.20478511,139.67,139.64,7.21206281]
[1742882532888,7.20898511,139.67,139.65,7.1598]
[1742882533291,7.20898511,139.67,139.64,0.05206281]
[1742882533292,0.04998511,139.67,139.64,0.05206281]
[1742882533793,0.04998511,139.67,139.65,7.1598]
[1742882534088,0.04998511,139.67,139.66,7.1593]
[1742882547203,0.04998511,139.67,139.65,25.38]
[1742882547204,5.9317,139.73,139.7,7.1569]
[1742882547407,5.9317,139.73,139.69,25.38]
[1742882547907,5.9317,139.73,139.7,7.1568]
[1742882548410,5.98454565,139.73,139.7,7.20779078]
[1742882548705,13.14074565,139.73,139.7,7.20779078]
[1742882549204,7.1563,139.72,139.7,0.05099078]
[1742882550608,7.1568,139.71,139.7,0.05099078]
[1742882553812,7.1566,139.72,139.7,0.05099078]
[1742882555513,7.1566,139.72,139.7,7.20819078]
[1742882556817,13.14054565,139.73,139.7,7.20819078]
[1742882557005,5.98454565,139.73,139.71,7.1565]
[1742882557210,0.05284565,139.73,139.7,0.05099078]
[1742882557612,0.05284565,139.73,139.72,7.1563]
[1742882557810,1.9081,139.78,139.72,25.36]
[1742882558621,7.1543,139.76,139.73,7.1555]
[1742882558918,7.20930472,139.76,139.73,7.20989606]
[1742882559319,7.20930472,139.76,139.73,0.05439606]
[1742882559616,0.05500472,139.76,139.73,0.05439606]
[1742882560017,7.1552,139.74,139.73,0.05439606]
[1742882560217,0.05500472,139.76,139.67,7.1586]
[1742882560218,33.61957332,139.75,139.67,7.1586]
[1742882560518,7.1571,139.71,139.67,7.1586]
[1742882561417,0.05180288,139.7,139.68,0.05374081]
[1742882561719,0.05180288,139.7,139.68,7.21194081]
[1742882564319,7.20930288,139.7,139.68,7.21194081]
[1742882564523,0.05180288,139.7,139.68,0.05374081]
[1742882564919,7.20940288,139.7,139.68,0.05374081]
[1742882565820,7.1578,139.69,139.68,0.05374081]
[1742882566919,0.05180288,139.7,139.68,0.05374081]
[1742882567512,0.05180288,139.7,139.69,25.36]
[1742882568016,3.9863,139.76,139.71,7.1565]
[1742882568223,3.9863,139.76,139.69,25.36]
[1742882568817,11.1408,139.76,139.72,7.1558]
[1742882569311,0.05490664,139.75,139.73,0.04907837]
[1742882569814,7.1552,139.74,139.73,0.04907837]
[1742882583733,7.1581,139.69,139.64,13.83728573]
[1742882584029,7.1581,139.69,139.64,39.19728573]
[1742882584332,7.1581,139.69,139.66,7.159]
[1742882584931,7.2128215,139.69,139.66,7.21088302]
[1742882585638,7.1584,139.68,139.66,0.05188302]
[1742882585931,0.0547215,139.69,139.66,0.05188302]
[1742882586134,7.2128215,139.69,139.66,7.21088302]
[1742882589536,7.1588,139.67,139.66,0.05188302]
[1742882592137,7.1585,139.68,139.66,0.05188302]
[1742882592841,7.1588,139.67,139.66,0.05188302]
[1742882595343,7.1586,139.68,139.66,0.05188302]
[1742882596241,7.1588,139.67,139.66,0.05188302]
[1742882598039,7.1585,139.68,139.66,0.05188302]
[1742882598437,7.1588,139.67,139.66,0.05188302]
[1742882603443,7.1608,139.64,139.6,1.904]
[1742882603649,7.1608,139.64,139.59,1.9072]
[1742882604042,7.1608,139.64,139.61,7.1616]
[1742882604744,7.20796514,139.64,139.61,7.21595597]
[1742882605150,7.20796514,139.64,139.62,7.1613]
[1742882605448,0.04716514,139.64,139.61,0.05435597]
[1742882605750,0.04716514,139.64,139.63,7.1609]
[1742882621161,0.04716514,139.64,139.62,7.1611]
[1742882625171,0.04716514,139.64,139.61,0.05435597]
[1742882625372,25.40716514,139.64,139.61,0.05435597]
[1742882626368,33.66673846,139.64,139.57,16.99978573]
[1742882626661,33.66673846,139.64,139.57,46.50804294]
[1742882626865,7.1629,139.6,139.57,46.50804294]
[1742882627073,33.61957332,139.61,139.57,39.34434294]
[1742882627374,1.8938,139.6,139.57,36.24264294]
[1742882627674,7.1634,139.58,139.57,36.24264294]
[1742882627877,32.5234,139.58,139.57,36.28890703]
[1742882628973,25.36,139.58,139.57,36.28890703]
[1742882629572,25.36,139.58,139.57,0.04626409]
[1742882635474,25.36,139.58,139.57,7.21026409]
[1742882638979,9.10906179,139.6,139.57,7.21026409]
[1742882639177,25.38,139.59,139.57,7.21026409]
[1742882639978,32.543,139.59,139.57,0.04626409]
[1742882640278,25.38,139.59,139.57,0.04626409]
[1742882640478,7.1634,139.58,139.57,0.04626409]
[1742882641475,25.38,139.59,139.57,0.04626409]
[1742882642280,32.543,139.59,139.57,7.20986409]
[1742882642577,32.543,139.59,139.57,0.04626409]
[1742882643181,7.163,139.59,139.57,0.04626409]
[1742882643379,32.543,139.59,139.57,0.04626409]
[1742882643977,25.38,139.59,139.57,7.21016409]
[1742882644780,32.543,139.59,139.57,0.04626409]
[1742882647781,7.163,139.59,139.57,0.04626409]
[1742882647979,32.543,139.59,139.57,0.04626409]
[1742882650883,7.163,139.59,139.57,0.04626409]
[1742882651083,7.1634,139.58,139.57,0.04626409]
[1742882654885,32.5432,139.59,139.57,0.04626409]
[1742882655988,7.1634,139.58,139.57,0.04626409]
[1742882659388,0.05266179,139.6,139.57,0.04626409]
[1742882659994,37.23433532,139.69,139.65,7.1596]
[1742882660396,25.38,139.69,139.65,7.1596]
[1742882660595,25.38,139.69,139.64,7.1601]
[1742882661098,7.1593,139.67,139.65,0.05115258]
[1742882661395,7.1593,139.67,139.65,7.21095258]
[1742882661596,7.21086733,139.68,139.65,7.21095258]
[1742882661990,0.05236733,139.68,139.65,0.05115258]
[1742882662194,7.159,139.67,139.65,0.05115258]
[1742882664290,7.21106733,139.68,139.65,7.21085258]
[1742882664496,0.05236733,139.68,139.65,0.05115258]
[1742882664895,0.05236733,139.68,139.66,7.1588]
[1742882665294,0.05236733,139.68,139.65,0.05115258]
[1742882665489,0.05236733,139.68,139.67,7.1588]
[1742882667692,0.05236733,139.68,139.66,25.36]
[1742882668699,0.05236733,139.68,139.66,32.5193]
[1742882672003,7.21066733,139.68,139.66,25.36]
[1742882672201,0.05236733,139.68,139.66,25.36]
[1742882673196,7.21076733,139.68,139.66,25.36]
[1742882674895,0.05236733,139.68,139.66,25.36]
[1742882675101,0.05236733,139.68,139.66,32.5193]
[1742882676301,7.21076733,139.68,139.66,25.36]
[1742882678202,7.21076733,139.68,139.65,7.21085258]
[1742882678904,0.05236733,139.68,139.65,0.05115258]
[1742882679706,7.1588,139.67,139.65,0.05115258]
[1742882679901,0.05236733,139.68,139.65,0.05115258]
[1742882680503,7.21086733,139.68,139.65,7.21075258]
[1742882683211,7.1589,139.67,139.65,0.05115258]
[1742882686612,7.1589,139.67,139.65,7.21095258]
[1742882690917,7.21096733,139.68,139.65,7.21095258]
[1742882692216,7.21096733,139.68,139.66,7.1593]
[1742882692517,7.21096733,139.68,139.65,0.05115258]
[1742882693514,7.21096733,139.68,139.65,7.21075258]
[1742882694425,7.1589,139.67,139.65,7.21075258]
[1742882695722,7.21086733,139.68,139.65,7.21075258]
[1742882700725,7.1589,139.67,139.65,7.21075258]
[1742882702729,7.21096733,139.68,139.65,7.21075258]
[1742882703229,7.21096733,139.68,139.66,7.1593]
[1742882703830,7.21096733,139.68,139.65,7.21075258]
[1742882705125,0.05236733,139.68,139.65,25.41115258]
[1742882706532,0.05236733,139.68,139.67,7.1588]
[1742882710231,25.34,139.73,139.71,7.1567]
[1742882710630,32.496,139.73,139.71,7.1567]
[1742882711332,32.55025664,139.73,139.71,7.21158295]
[1742882712930,7.1563,139.72,139.71,0.05488295]
[1742882713130,0.05425664,139.73,139.71,0.05488295]
[1742882713836,7.21025664,139.73,139.71,0.05488295]
[1742882714933,0.05425664,139.73,139.71,7.21158295]
[1742882715537,7.21025664,139.73,139.71,0.05488295]
[1742882720643,0.05425664,139.73,139.71,7.21138295]
[1742882721334,0.05425664,139.73,139.72,7.1563]
[1742882721537,0.05425664,139.73,139.71,0.05488295]
[1742882721842,7.21005664,139.73,139.71,7.21168295]
[1742882722137,7.21005664,139.73,139.71,0.05488295]
[1742882722537,7.1563,139.72,139.71,0.05488295]
[1742882725338,0.05425664,139.73,139.71,0.05488295]
[1742882725841,7.154,139.77,139.71,25.39488295]
[1742882726240,7.154,139.77,139.74,7.1549]
[1742882726839,27.2099,139.79,139.74,0.04983093]
[1742882727143,0.04872382,139.77,139.74,0.04983093]
[1742882728143,7.1548,139.75,139.74,0.04983093]
[1742882729143,7.1545,139.76,139.74,0.04983093]
[1742882729348,0.04872382,139.77,139.74,0.04983093]
[1742882730250,0.04872382,139.77,139.74,25.38983093]
[1742882730940,3.9204,139.84,139.74,25.38983093]
[1742882731141,25.34,139.83,139.75,2.0331]
[1742882731343,7.1529,139.79,139.76,7.1539]
[1742882731653,25.34,139.83,139.75,2.0331]
[1742882731845,7.1514,139.82,139.75,2.0331]
[1742882732150,3.9204,139.84,139.75,2.0331]
[1742882732151,0.0514143,139.8,139.77,0.05182549]
[1742882732945,0.0514143,139.8,139.77,25.39182549]
[1742882733745,0.0514143,139.8,139.78,7.1529]
[1742882733943,0.0514143,139.8,139.77,25.39182549]
[1742882734342,0.0514143,139.8,139.77,32.54532549]
[1742882734947,0.0514143,139.8,139.77,25.39182549]
[1742882735147,0.0514143,139.8,139.78,7.1528]
[1742882736449,0.0514143,139.8,139.77,32.54532549]
[1742882737747,7.2036143,139.8,139.77,25.39182549]
[1742882738647,7.2036143,139.8,139.77,25.37182549]
[1742882738847,0.0514143,139.8,139.77,32.52522549]
[1742882739653,7.2037143,139.8,139.77,32.52522549]
[1742882741049,0.0514143,139.8,139.77,25.37182549]
[1742882741648,0.0514143,139.8,139.79,7.1527]
[1742882742654,7.1503,139.84,139.81,7.1513]
[1742882743154,7.1503,139.84,139.77,25.32]
[1742882743354,7.1507,139.83,139.8,7.1519]
[1742882743748,7.20566816,139.83,139.8,7.20311049]
[1742882743948,7.20566816,139.83,139.81,7.1516]
[1742882744150,0.05496816,139.83,139.81,7.1516]
[1742882745256,0.05496816,139.83,139.8,25.37121049]
[1742882745257,0.05496816,139.83,139.82,7.1511]
[1742882755362,7.1487,139.87,139.84,7.1499]
[1742882755958,271.7462,139.98,139.83,25.32]
[1742882756160,3.9235,139.93,139.83,25.32]
[1742882756455,0.05472661,139.89,139.87,0.04970914]
[1742882756654,0.05472661,139.89,139.88,7.1481]
[1742882757258,0.05472661,139.89,139.87,7.19800914]
[1742882757659,0.05472661,139.89,139.87,0.04970914]
[1742882758366,0.05472661,139.89,139.87,7.19820914]
[1742882758658,0.05472661,139.89,139.87,0.04970914]
[1742882760258,7.20272661,139.89,139.87,0.04970914]
[1742882761761,7.1481,139.88,139.87,0.04970914]
[1742882771770,0.05472661,139.89,139.87,0.04970914]
[1742882772672,7.20252661,139.89,139.87,0.04970914]
[1742882775475,7.1481,139.88,139.87,0.04970914]
[1742882783475,7.20272661,139.89,139.87,0.04970914]
[1742882784283,7.1481,139.88,139.87,0.04970914]
[1742882791204,0.05472661,139.89,139.87,0.04970914]
[1742882792404,0.05472661,139.89,139.87,7.19810914]
[1742882795002,0.05472661,139.89,139.87,0.04970914]
[1742882796608,7.20252661,139.89,139.87,0.04970914]
[1742882797309,7.1481,139.88,139.87,0.04970914]
[1742882799009,7.20242661,139.89,139.87,0.04970914]
[1742882799506,7.1481,139.88,139.87,0.04970914]
[1742882799908,0.05472661,139.89,139.87,0.04970914]
[1742882800209,7.20252661,139.89,139.87,0.04970914]
[1742882800708,0.05472661,139.89,139.87,0.04970914]
[1742882802606,0.05472661,139.89,139.88,7.1481]
[1742882810113,7.1459,139.93,139.9,7.1468]
[1742882811311,7.19995701,139.93,139.9,7.19915542]
[1742882812409,0.05405701,139.93,139.9,0.05235542]
[1742882813417,7.146,139.92,139.9,0.05235542]
[1742882813718,0.05405701,139.93,139.9,0.05235542]
[1742882813911,3.9416,139.92,139.9,0.05235542]
[1742882814114,7.1465,139.91,139.9,0.05235542]
[1742882835932,29.2416,139.92,139.83,1.9167]
[1742882836135,8.25957332,139.89,139.81,39.33445525]
[1742882836327,8.25957332,139.87,139.81,39.33445525]
[1742882836535,7.1511,139.82,139.81,39.33445525]
[1742882837032,7.1511,139.82,139.81,108.19694311]
[1742882840532,0.04909155,139.83,139.8,0.0510873]
[1742882840533,7.1517,139.81,139.8,0.0510873]
[1742882841334,7.1536,139.78,139.73,73.02908459]
[1742882841545,25.3,139.82,139.75,7.1545]
[1742882841738,33.55957332,139.82,139.74,9.86396882]
[1742882842041,8.25957332,139.81,139.74,9.86396882]
[1742882842445,3.8015,139.8,139.74,9.86396882]
[1742882842648,25.37079278,139.79,139.76,0.0526021]
[1742882843844,7.1532,139.78,139.76,0.0526021]
[1742882844047,25.37079278,139.79,139.76,0.0526021]
[1742882844545,32.52379278,139.79,139.76,0.0526021]
[1742882845146,7.1534,139.78,139.76,0.0526021]
[1742882845351,33.6303661,139.79,139.76,0.0526021]
[1742882845650,8.25957332,139.78,139.71,39.37222603]
[1742882846450,7.1545,139.76,139.71,39.37222603]
[1742882846648,25.42,139.75,139.73,0.05481121]
[1742882847948,32.5747,139.75,139.73,0.05481121]
[1742882849244,7.1552,139.74,139.73,0.05481121]
[1742882851146,7.1562,139.73,139.69,7.1577]
[1742882851351,33.67957332,139.75,139.69,7.1577]
[1742882851550,33.67957332,139.75,139.68,7.1581]
[1742882851751,7.1566,139.72,139.68,7.1581]
[1742882851947,8.25957332,139.74,139.68,7.1581]
[1742882852253,7.1567,139.72,139.69,7.1578]
[1742882852456,7.20440616,139.72,139.7,0.05034753]
[1742882855558,0.04770616,139.72,139.7,7.20754753]
[1742882856554,7.20400616,139.72,139.7,0.05034753]
[1742882860060,7.1568,139.71,139.7,0.05034753]
[1742882861864,7.1581,139.69,139.64,1.9038]
[1742882862355,7.1581,139.69,139.66,7.159]
[1742882862763,7.1581,139.69,139.66,7.20905193]
[1742882862764,7.20925079,139.69,139.66,7.20905193]
[1742882862959,7.1584,139.68,139.66,0.05005193]
[1742882864762,7.1583,139.68,139.66,0.05005193]
[1742882866262,7.20925079,139.69,139.66,0.05005193]
[1742882866964,7.20925079,139.69,139.66,7.20925193]
[1742882867258,0.05115079,139.69,139.66,0.05005193]
[1742882868459,0.05115079,139.69,139.68,7.1583]
[1742882875267,0.05115079,139.69,139.66,7.20935193]
[1742882875468,0.05115079,139.69,139.66,0.05005193]
[1742882875967,7.20945079,139.69,139.66,0.05005193]
[1742882876367,7.1586,139.68,139.66,0.05005193]
[1742882876770,0.05115079,139.69,139.66,0.05005193]
[1742882876969,7.1583,139.68,139.66,0.05005193]
[1742882878562,0.05115079,139.69,139.66,0.05005193]
[1742882878769,7.1588,139.67,139.66,0.05005193]
[1742882881970,7.1586,139.68,139.66,0.05005193]
[1742882882370,0.05115079,139.69,139.66,0.05005193]
[1742882883477,7.1588,139.67,139.66,0.05005193]
[1742882883775,0.05115079,139.69,139.66,7.20935193]
[1742882884474,7.20925079,139.69,139.66,7.20935193]
[1742882885170,0.05115079,139.69,139.68,7.1583]
[1742882894680,0.05115079,139.69,139.67,7.1586]
[1742882894977,0.05115079,139.69,139.66,0.05005193]
[1742882896481,0.05115079,139.69,139.68,7.1583]
[1742882904883,100.98705037,139.84,139.68,7.1583]
[1742882904884,11.84578323,139.79,139.73,7.1558]
[1742882905189,7.1541,139.77,139.68,25.36]
[1742882905386,1.882,139.78,139.75,7.1544]
[1742882905585,1.882,139.78,139.71,25.36]
[1742882905984,0.04659621,139.76,139.74,7.155]
[1742882906784,7.20079621,139.76,139.73,7.20467416]
[1742882907089,0.04659621,139.76,139.73,0.04917416]
[1742882907285,7.1552,139.74,139.73,0.04917416]
[1742882909986,0.04659621,139.76,139.73,7.20497416]
[1742882910593,7.20119621,139.76,139.73,7.20497416]
[1742882910893,0.04659621,139.76,139.73,0.04917416]
[1742882912092,0.04659621,139.76,139.74,7.1552]
[1742882912285,0.04659621,139.76,139.73,0.04917416]
[1742882912681,0.04659621,139.76,139.74,7.1552]
[1742882913297,7.20089621,139.76,139.73,7.20467416]
[1742882913594,0.04659621,139.76,139.73,0.04917416]
[1742882913891,0.04659621,139.76,139.74,7.1552]
[1742882914894,0.04659621,139.76,139.73,0.04917416]
[1742882916196,7.20099621,139.76,139.73,7.20467416]
[1742882917391,0.04659621,139.76,139.73,0.04917416]
[1742882917990,7.1552,139.74,139.73,0.04917416]
[1742882920100,7.1549,139.75,139.73,0.04917416]
[1742882920698,7.1552,139.74,139.73,0.04917416]
[1742882933816,7.1549,139.75,139.73,0.04917416]
[1742882934513,32.52109621,139.76,139.73,0.04917416]
[1742882934719,0.04659621,139.76,139.74,7.155]
[1742882935618,0.04659621,139.76,139.75,7.1547]
[1742882936113,0.04659621,139.76,139.74,7.155]
[1742882937422,7.20079621,139.76,139.74,7.155]
[1742882938118,7.20079621,139.76,139.73,7.20467416]
[1742882939120,0.04659621,139.76,139.74,7.1552]
[1742882939522,0.04659621,139.76,139.73,0.04917416]
[1742882939820,7.20099621,139.76,139.73,7.20457416]
[1742882940417,7.1547,139.75,139.73,7.20457416]
[1742882940821,0.04659621,139.76,139.73,7.20457416]
[1742882941122,7.20109621,139.76,139.73,7.20457416]
[1742882941617,7.20109621,139.76,139.74,7.1552]
[1742882941822,0.04659621,139.76,139.74,7.1552]
[1742882942521,7.20079621,139.76,139.73,7.20467416]
[1742882944026,7.1547,139.75,139.73,7.20467416]
[1742882944526,0.04659621,139.76,139.73,7.20467416]
[1742882944527,0.04659621,139.76,139.73,25.36917416]
[1742882944824,11.92267362,139.84,139.73,25.36917416]
[1742882945024,11.92267362,139.84,139.74,3.9577]
[1742882945220,7.1512,139.82,139.74,3.9577]
[1742882945519,7.1512,139.82,139.78,7.1527]
[1742882946024,0.05224485,139.81,139.79,0.04516645]
[1742882947424,7.1522,139.8,139.79,0.04516645]
[1742882955030,8.25957332,139.8,139.7,83.05824424]
[1742882955240,8.25957332,139.78,139.7,66.65032603]
[1742882955430,7.1552,139.75,139.71,7.1566]
[1742882955629,25.32,139.76,139.7,64.69222603]
[1742882955832,25.32,139.76,139.7,39.37222603]
[1742882956037,7.1568,139.71,139.7,39.37222603]
[1742882956734,7.1568,139.71,139.69,78.7409602]
[1742882956735,7.1568,139.71,139.69,0.0522743]
[1742882956934,7.1573,139.7,139.69,0.0522743]
[1742882957737,7.21179591,139.71,139.69,0.0522743]
[1742882964140,0.05479591,139.71,139.69,0.0522743]
[1742882964846,0.05479591,139.71,139.7,7.1573]
[1742882965439,1.9753,139.79,139.69,0.0522743]
[1742882965643,25.32,139.76,139.69,25.3722743]
[1742882966034,25.32,139.76,139.69,29.1593743]
[1742882966646,0.05510186,139.74,139.73,7.1554]
[1742882976658,3.9297,139.81,139.72,25.44780984]
[1742882976859,29.3297,139.81,139.72,25.4]
[1742882977051,27.4652,139.81,139.72,25.4]
[1742882977252,7.1522,139.8,139.77,7.1534]
[1742882977853,7.1522,139.8,139.77,7.20422521]
[1742882977854,7.202676,139.8,139.77,7.20422521]
[1742882978059,7.1527,139.79,139.77,0.05082521]
[1742882980660,7.1532,139.78,139.77,0.05082521]
[1742882981056,7.1529,139.79,139.77,0.05082521]
[1742882982664,7.202776,139.8,139.77,0.05082521]
[1742882983462,7.1529,139.79,139.77,0.05082521]
[1742882985663,7.1532,139.78,139.77,0.05082521]
[1742882986663,0.050476,139.8,139.77,0.05082521]
[1742882986664,7.1529,139.79,139.77,0.05082521]
[1742882988062,7.202876,139.8,139.77,7.20452521]
[1742882989060,7.1527,139.79,139.77,0.05082521]
[1742882990969,7.1532,139.78,139.77,0.05082521]
[1742882992659,7.1529,139.79,139.77,0.05082521]
[1742882992859,0.050476,139.8,139.77,0.05082521]
[1742882993776,7.1532,139.78,139.77,0.05082521]
[1742882996670,7.1553,139.74,139.7,25.58]
[1742882996970,33.83957332,139.78,139.69,39.37222603]
[1742882997270,7.1566,139.72,139.69,39.37222603]
[1742882997464,25.58,139.74,139.69,39.37222603]
[1742882997864,7.1568,139.71,139.7,0.05417591]
[1742883001974,7.1565,139.72,139.7,0.05417591]
[1742883002572,0.05356992,139.73,139.7,0.05417591]
[1742883002973,0.05356992,139.73,139.7,7.21127591]
[1742883004469,0.05356992,139.73,139.71,7.1567]
[1742883005272,0.05356992,139.73,139.7,7.21127591]
[1742883008478,0.05356992,139.73,139.71,7.1567]
[1742883010077,0.05356992,139.73,139.72,7.1563]
[1742883010272,5.9578,139.79,139.71,25.54]
[1742883010473,29.4726,139.79,139.71,25.54]
[1742883011070,36.6254,139.79,139.71,25.54]
[1742883011376,0.04671421,139.76,139.74,0.05510833]
[1742883011879,0.04671421,139.76,139.75,7.1543]
[1742883017183,0.04671421,139.76,139.74,0.05510833]
[1742883017582,7.20131421,139.76,139.74,0.05510833]
[1742883018176,0.04671421,139.76,139.74,0.05510833]
[1742883023082,0.04671421,139.76,139.74,7.21030833]
[1742883024486,0.04671421,139.76,139.74,0.05510833]
[1742883026185,0.04671421,139.76,139.74,7.21020833]
[1742883026783,0.04671421,139.76,139.74,0.05510833]
[1742883028586,0.04671421,139.76,139.74,7.21030833]
[1742883029388,0.04671421,139.76,139.75,7.1547]
[1742883031689,0.04671421,139.76,139.74,7.21010833]
[1742883032394,0.04671421,139.76,139.75,7.1547]
[1742883036283,0.04671421,139.76,139.74,7.21030833]
[1742883036786,7.20121421,139.76,139.74,0.05510833]
[1742883037691,0.04671421,139.76,139.74,0.05510833]
[1742883038287,0.04671421,139.76,139.74,7.21000833]
[1742883038783,0.04671421,139.76,139.74,0.05510833]
[1742883039592,0.04671421,139.76,139.74,7.21000833]
[1742883041092,0.04671421,139.76,139.74,0.05510833]
[1742883041594,0.04671421,139.76,139.74,7.21020833]
[1742883045498,7.20101421,139.76,139.74,7.21020833]
[1742883045696,7.20101421,139.76,139.74,0.05510833]
[1742883045898,0.04671421,139.76,139.74,0.05510833]
[1742883046195,0.04671421,139.76,139.75,7.1547]
[1742883047495,3.8087,139.83,139.78,7.1529]
[1742883047687,8.25957332,139.88,139.77,25.34]
[1742883047894,7.1505,139.84,139.77,25.34]
[1742883048197,25.34,139.87,139.8,7.1517]
[1742883048388,33.59957332,139.87,139.77,25.34]
[1742883048592,0.05139215,139.83,139.79,7.1525]
[1742883048793,0.05139215,139.83,139.81,0.05149609]
[1742883049199,7.1515,139.82,139.81,0.05149609]
[1742883050100,0.05139215,139.83,139.81,0.05149609]
[1742883050602,7.1511,139.82,139.81,0.05149609]
[1742883051510,8.25957332,139.82,139.74,32.495]
[1742883051804,25.34,139.81,139.74,25.34]
[1742883052004,7.1527,139.79,139.75,7.1547]
[1742883052199,7.1527,139.79,139.74,25.34]
[1742883052406,25.34,139.81,139.74,25.34]
[1742883052601,0.04768099,139.78,139.75,0.04988825]
[1742883053405,7.20118099,139.78,139.75,0.04988825]
[1742883053605,0.04768099,139.78,139.75,0.04988825]
[1742883054006,7.1542,139.76,139.75,0.04988825]
[1742883055208,7.154,139.77,139.75,0.04988825]
[1742883055606,0.04768099,139.78,139.75,0.04988825]
[1742883055800,7.1537,139.77,139.75,0.04988825]
[1742883056709,0.04768099,139.78,139.75,0.04988825]
[1742883057111,7.1542,139.76,139.75,0.04988825]
[1742883057311,0.04768099,139.78,139.75,0.04988825]
[1742883057809,0.04768099,139.78,139.75,7.20418825]
[1742883058108,0.04768099,139.78,139.75,0.04988825]
[1742883058503,0.04768099,139.78,139.76,7.154]
[1742883060408,0.04768099,139.78,139.75,0.04988825]
[1742883061015,7.1542,139.76,139.75,0.04988825]
[1742883072315,7.1556,139.74,139.71,7.1566]
[1742883073415,7.2038076,139.74,139.71,7.20541707]
[1742883074116,0.0482076,139.74,139.72,7.1561]
[1742883074322,0.0482076,139.74,139.71,0.04881707]
[1742883074921,7.2034076,139.74,139.71,7.20521707]
[1742883081227,0.0482076,139.74,139.72,7.1562]
[1742883082423,7.2037076,139.74,139.71,7.20541707]
[1742883082728,0.0482076,139.74,139.71,0.04881707]
[1742883082931,7.1558,139.73,139.71,0.04881707]
[1742883084230,7.1563,139.72,139.71,0.04881707]
[1742883087032,7.156,139.73,139.71,0.04881707]
[1742883087533,0.0482076,139.74,139.71,0.04881707]
[1742883087727,7.1558,139.73,139.71,0.04881707]
[1742883087927,0.0482076,139.74,139.71,0.04881707]
[1742883089232,7.1561,139.73,139.71,0.04881707]
[1742883089534,0.0482076,139.74,139.71,0.04881707]
[1742883089729,7.1558,139.73,139.71,0.04881707]
[1742883091736,7.1563,139.72,139.71,0.04881707]
[1742883095341,7.156,139.73,139.71,0.04881707]
[1742883100745,7.1563,139.72,139.71,0.04881707]
[1742883102445,7.156,139.73,139.71,0.04881707]
[1742883105148,7.1563,139.72,139.71,0.04881707]
[1742883105544,0.0482076,139.74,139.71,0.04881707]
[1742883105848,7.1562,139.73,139.71,0.04881707]
[1742883106049,0.0482076,139.74,139.71,0.04881707]
[1742883106549,7.1562,139.73,139.71,0.04881707]
[1742883116954,7.2037076,139.74,139.71,7.20541707]
[1742883117753,7.2037076,139.74,139.71,0.04881707]
[1742883118249,7.2037076,139.74,139.71,7.20561707]
[1742883118449,0.0482076,139.74,139.71,0.04881707]
[1742883119052,0.0482076,139.74,139.72,7.1559]
[1742883119255,0.0482076,139.74,139.71,0.04881707]
[1742883119755,0.0482076,139.74,139.72,7.1563]
[1742883120355,0.0482076,139.74,139.73,7.1558]
[1742883121657,8.25957332,139.81,139.71,0.04881707]
[1742883121957,31.39,139.83,139.73,25.32]
[1742883122258,7.1514,139.82,139.74,1.8878]
[1742883122453,7.1514,139.82,139.74,3.929]
[1742883122956,0.05445074,139.79,139.77,0.04877683]
[1742883123157,0.05445074,139.79,139.78,7.1532]
[1742883124661,0.05445074,139.79,139.77,7.20227683]
[1742883126757,0.05445074,139.79,139.78,7.1532]